bitfinex-derivatives/quotes_BTCF0:USTF0_20251030
["timestamp","ask_amount","ask_price","bid_price","bid_amount"]
[1761831862422,0.0028,107560.0,107530.0,0.00011928]
[1761831862621,1.12864036,107540.0,107530.0,0.00011928]
[1761831862927,1.47123442,107540.0,107530.0,0.00011928]
[1761831864031,1.82151442,107540.0,107530.0,0.00011928]
[1761831864231,1.93146382,107540.0,107530.0,0.00011928]
[1761831864422,1.92426382,107540.0,107530.0,0.00011928]
[1761831864623,1.82151442,107540.0,107530.0,0.00011928]
[1761831864922,1.92152675,107540.0,107530.0,0.00011928]
[1761831865121,1.57120675,107540.0,107530.0,0.00011928]
[1761831865522,1.93152675,107540.0,107520.0,0.03585]
[1761831865730,0.76784036,107530.0,107520.0,0.03585]
[1761831865921,1.10784036,107530.0,107520.0,0.03585]
[1761831866124,1.1130285,107530.0,107520.0,0.03585]
[1761831866637,1.31306211,107530.0,107520.0,0.03585]
[1761831866928,1.31306211,107530.0,107520.0,0.14961]
[1761831866929,0.66599408,107530.0,107520.0,0.14961]
[1761831867128,0.77599408,107530.0,107520.0,0.14961]
[1761831867324,1.18303444,107530.0,107520.0,0.14961]
[1761831867531,0.77599408,107530.0,107520.0,0.14961]
[1761831867720,1.12303444,107530.0,107520.0,0.14961]
[1761831868127,0.66599408,107530.0,107520.0,0.14961]
[1761831868323,0.20003361,107530.0,107520.0,0.51041]
[1761831868523,7.66e-05,107530.0,107520.0,0.15241]
[1761831868736,0.79569916,107530.0,107520.0,0.14961]
[1761831869227,1.14178566,107530.0,107520.0,0.14961]
[1761831869929,0.75863113,107530.0,107520.0,0.14679]
[1761831870127,1.16567149,107530.0,107520.0,0.14679]
[1761831870529,0.46863113,107530.0,107520.0,0.09]
[1761831870727,0.79569916,107530.0,107520.0,0.14679]
[1761831870932,0.79569916,107530.0,107520.0,0.09]
[1761831871531,1.06569916,107530.0,107520.0,0.09]
[1761831871729,1.17567149,107530.0,107520.0,0.03585]
[1761831872229,0.89567149,107530.0,107520.0,0.14679]
[1761831872436,0.92567149,107530.0,107520.0,0.14679]
[1761831872624,0.82569916,107530.0,107520.0,0.14679]
[1761831872826,0.4186588,107530.0,107520.0,0.14679]
[1761831873025,0.3686588,107530.0,107520.0,0.14679]
[1761831873431,7.66e-05,107530.0,107520.0,0.14679]
[1761831873736,7.66e-05,107530.0,107520.0,0.6006047]
[1761831874138,0.3608,107550.0,107540.0,0.143]
[1761831874327,0.3808,107550.0,107540.0,0.143]
[1761831874530,1.06043395,107550.0,107540.0,0.143]
[1761831874728,1.06043395,107550.0,107540.0,0.03206]
[1761831874928,1.06043395,107550.0,107540.0,0.143]
[1761831875232,1.06050036,107550.0,107540.0,0.08621]
[1761831875437,0.38086641,107550.0,107540.0,0.143]
[1761831875628,0.48343233,107550.0,107540.0,0.143]
[1761831875829,0.89047269,107550.0,107540.0,0.143]
[1761831876035,1.21047269,107550.0,107540.0,0.143]
[1761831876235,1.20047269,107550.0,107540.0,0.143]
[1761831877138,1.06047269,107550.0,107540.0,0.143]
[1761831877732,0.92047269,107550.0,107540.0,0.143]
[1761831878342,1.19327269,107550.0,107540.0,0.03206]
[1761831878535,1.19047269,107550.0,107540.0,0.03206]
[1761831879640,1.19047269,107550.0,107540.0,0.11947144]
[1761831879939,1.19047269,107550.0,107540.0,0.08621]
[1761831880341,1.19047269,107550.0,107540.0,0.03206]
[1761831881742,1.19047269,107550.0,107540.0,0.08621]
[1761831882132,1.19047269,107550.0,107540.0,0.03206]
[1761831882333,1.20047269,107550.0,107540.0,0.03206]
[1761831883141,0.48343233,107550.0,107540.0,0.143]
[1761831883340,0.48343233,107550.0,107540.0,0.17626144]
[1761831883341,0.89047269,107550.0,107540.0,0.17626144]
[1761831883638,0.48343233,107550.0,107540.0,0.17626144]
[1761831883836,0.38086641,107550.0,107540.0,0.17626144]
[1761831884042,6.641e-05,107550.0,107540.0,0.55608209]
[1761831884238,6.641e-05,107550.0,107540.0,0.5066]
[1761831884837,6.641e-05,107550.0,107540.0,0.5995974]
[1761831885039,1.03050036,107550.0,107540.0,0.08183333]
[1761831885243,1.03050036,107550.0,107540.0,0.0317797]
[1761831885444,1.83045738,107550.0,107540.0,0.0317797]
[1761831885739,1.84325737,107550.0,107520.0,0.06921909]
[1761831886038,1.12864036,107530.0,107520.0,0.06921909]
[1761831886232,1.14870677,107530.0,107520.0,0.18015909]
[1761831886430,0.74685502,107530.0,107520.0,0.18015909]
[1761831886641,0.90685502,107530.0,107520.0,0.23021272]
[1761831886833,1.51385239,107530.0,107520.0,0.12336909]
[1761831887036,1.51385239,107530.0,107520.0,0.18015909]
[1761831887243,1.61382472,107530.0,107520.0,0.18015909]
[1761831887543,1.43382472,107530.0,107520.0,0.18015909]
[1761831887730,1.48382472,107530.0,107520.0,0.18015909]
[1761831887930,1.04678436,107530.0,107520.0,0.18015909]
[1761831888134,1.48382472,107530.0,107520.0,0.19684363]
[1761831888333,1.48382472,107530.0,107520.0,0.18017213]
[1761831888534,1.02678436,107530.0,107520.0,0.19684363]
[1761831888734,0.90574417,107530.0,107520.0,0.19964363]
[1761831888936,0.90574417,107530.0,107520.0,0.19684363]
[1761831889135,0.90565109,107530.0,107520.0,0.19684363]
[1761831889551,0.54485109,107530.0,107520.0,0.19684363]
[1761831889740,0.56082342,107530.0,107520.0,0.19684363]
[1761831890034,1.01786378,107530.0,107520.0,0.19684363]
[1761831890249,0.20780562,107530.0,107520.0,0.19684363]
[1761831890439,0.56860562,107530.0,107520.0,0.19684363]
[1761831890638,0.20780562,107530.0,107520.0,0.19684363]
[1761831891540,0.58860562,107530.0,107520.0,0.19684363]
[1761831891739,0.56860562,107530.0,107520.0,0.19684363]
[1761831891936,0.68857795,107530.0,107520.0,0.19684363]
[1761831892138,1.07561831,107530.0,107520.0,0.19684363]
[1761831892545,0.71857795,107530.0,107520.0,0.19684363]
[1761831892849,0.36864861,107530.0,107520.0,0.19684363]
[1761831893344,0.36086641,107530.0,107520.0,0.14679]
[1761831893538,6.641e-05,107530.0,107520.0,0.50759]
[1761831893737,6.641e-05,107530.0,107520.0,0.51039]
[1761831893939,0.3608,107560.0,107550.0,0.11094]
[1761831894148,0.78784036,107560.0,107550.0,0.14434837]
[1761831894348,0.3808,107560.0,107550.0,0.14434837]
[1761831894544,0.3608,107560.0,107550.0,0.14434837]
[1761831894747,0.38415945,107590.0,107550.0,0.14434837]
[1761831894748,0.3608,107580.0,107570.0,0.10037]
[1761831894940,0.91781269,107580.0,107570.0,0.10037]
[1761831895140,1.20781269,107580.0,107560.0,0.03035]
[1761831895340,0.76784036,107570.0,107560.0,0.03035]
[1761831895640,0.95784036,107570.0,107560.0,0.03035]
[1761831896250,1.26056972,107570.0,107560.0,0.03035]
[1761831896551,1.62064972,107570.0,107560.0,0.03035]
[1761831896747,1.63064972,107570.0,107540.0,0.06546837]
[1761831896942,1.12864036,107550.0,107540.0,0.03206]
[1761831897144,1.40864036,107550.0,107540.0,0.06546837]
[1761831897347,1.41123395,107550.0,107540.0,0.06546837]
[1761831898045,1.7111633,107550.0,107540.0,0.06546837]
[1761831898649,1.78594893,107550.0,107540.0,0.06546837]
[1761831899449,1.04412294,107550.0,107540.0,0.16583837]
[1761831899746,1.04412294,107550.0,107540.0,0.18254256]
[1761831899747,1.33529624,107550.0,107540.0,0.18254256]
[1761831899950,0.94825588,107550.0,107540.0,0.18254256]
[1761831900141,1.72119097,107550.0,107540.0,0.18254256]
[1761831900345,1.61532391,107550.0,107540.0,0.18254256]
[1761831900641,2.00119097,107550.0,107540.0,0.06548122]
[1761831900946,2.00119097,107550.0,107530.0,0.05011256]
[1761831900947,2.01399096,107550.0,107530.0,0.05011256]
[1761831901142,0.76784036,107540.0,107520.0,0.08596256]
[1761831901338,1.11784036,107530.0,107520.0,0.03585]
[1761831901540,1.2644033,107530.0,107520.0,0.03585]
[1761831901740,1.26570063,107530.0,107520.0,0.03585]
[1761831902245,1.50930393,107530.0,107520.0,0.03585]
[1761831902448,1.50930393,107530.0,107500.0,0.03368]
[1761831902449,0.0028,107520.0,107500.0,0.03368]
[1761831902637,1.3180033,107510.0,107500.0,0.03368]
[1761831902842,1.6080033,107510.0,107480.0,0.03035]
[1761831903042,0.6044033,107490.0,107480.0,0.13072]
[1761831903246,0.3608,107490.0,107480.0,0.13072]
[1761831903552,0.37766741,107490.0,107480.0,0.13072]
[1761831903749,0.9543633,107510.0,107500.0,0.13072]
[1761831903942,1.2543633,107510.0,107500.0,0.03035]
[1761831904250,1.55429263,107510.0,107500.0,0.03035]
[1761831904451,0.90433263,107510.0,107500.0,0.13072]
[1761831904657,0.29992933,107510.0,107500.0,0.49152]
[1761831904855,0.199957,107510.0,107500.0,0.49152]
[1761831905050,0.69745154,107520.0,107510.0,0.10037]
[1761831905249,0.3608,107530.0,107520.0,0.13072]
[1761831905550,1.1243633,107530.0,107520.0,0.13072]
[1761831905738,0.73076,107530.0,107520.0,0.13072]
[1761831905940,0.9743633,107530.0,107520.0,0.13072]
[1761831906346,0.19995701,107530.0,107520.0,0.49432]
[1761831906547,0.10187541,107530.0,107520.0,0.44321849]
[1761831906755,0.3608,107540.0,107530.0,0.10037]
[1761831906947,0.2436033,107550.0,107540.0,0.10037]
[1761831907148,0.3608,107570.0,107560.0,0.10037]
[1761831907349,0.3608,107580.0,107570.0,0.10037]
[1761831907657,0.97894817,107600.0,107580.0,0.03035]
[1761831907844,0.2436033,107590.0,107580.0,0.03035]
[1761831908045,0.6908,107590.0,107560.0,0.02502005]
[1761831908251,0.3608,107570.0,107560.0,0.12539005]
[1761831908456,0.6244033,107570.0,107560.0,0.10037]
[1761831908759,0.6244033,107570.0,107560.0,0.12539005]
[1761831909248,1.0042833,107570.0,107560.0,0.12539005]
[1761831909448,1.10425563,107570.0,107560.0,0.12539005]
[1761831909649,1.2642833,107570.0,107560.0,0.07714005]
[1761831909850,1.5078866,107570.0,107550.0,0.05537005]
[1761831910050,1.5078866,107570.0,107550.0,0.03035]
[1761831910051,0.8480066,107560.0,107550.0,0.03035]
[1761831910260,1.1380066,107560.0,107550.0,0.05537005]
[1761831910559,1.33800017,107560.0,107550.0,0.05537005]
[1761831910857,0.0028,107550.0,107520.0,0.03035]
[1761831911046,0.9652033,107530.0,107520.0,0.03035]
[1761831911248,1.1552033,107530.0,107520.0,0.03035]
[1761831911448,1.7552033,107530.0,107520.0,0.03035]
[1761831911660,1.1552033,107530.0,107520.0,0.03035]
[1761831911855,1.23410467,107530.0,107520.0,0.03035]
[1761831912155,1.23410467,107530.0,107500.0,0.09644519]
[1761831912156,2.07490797,107530.0,107500.0,0.03035]
[1761831912365,0.9652033,107510.0,107500.0,0.03035]
[1761831912656,1.3052033,107510.0,107500.0,0.03035]
[1761831912855,1.3080033,107510.0,107500.0,0.03035]
[1761831913055,1.3052033,107510.0,107500.0,0.03035]
[1761831913456,1.75497563,107510.0,107500.0,0.03035]
[1761831913659,1.75493563,107510.0,107500.0,0.03035]
[1761831913861,1.19133233,107510.0,107500.0,0.13072]
[1761831914057,1.07136,107510.0,107500.0,0.13072]
[1761831914254,1.3149633,107510.0,107500.0,0.03035]
[1761831914556,1.5849127,107510.0,107500.0,0.03035]
[1761831914747,2.1849127,107510.0,107500.0,0.03035]
[1761831915059,2.0849633,107510.0,107500.0,0.03035]
[1761831915260,2.0877633,107510.0,107500.0,0.03035]
[1761831915455,0.99157233,107510.0,107500.0,0.13072]
[1761831915656,1.07136,107510.0,107500.0,0.13072]
[1761831916258,0.7216,107510.0,107500.0,0.13072]
[1761831916447,0.7416,107510.0,107500.0,0.13072]
[1761831916764,0.71056,107520.0,107510.0,0.09678]
[1761831917054,0.91055357,107520.0,107510.0,0.09678]
[1761831917260,0.19999357,107520.0,107510.0,0.09678]
[1761831918061,0.07977758,107520.0,107510.0,0.09678]
[1761831918257,0.6244033,107520.0,107510.0,0.09678]
[1761831918763,0.6044033,107520.0,107510.0,0.09678]
[1761831919062,0.6544033,107520.0,107510.0,0.09678]
[1761831919259,0.6244033,107520.0,107510.0,0.09678]
[1761831919456,0.46077233,107520.0,107510.0,0.09678]
[1761831919654,0.71052,107530.0,107520.0,0.1267]
[1761831919854,0.76048,107530.0,107520.0,0.1267]
[1761831920059,0.4108,107530.0,107520.0,0.1267]
[1761831920252,0.76048,107530.0,107520.0,0.1267]
[1761831920453,0.3608,107540.0,107530.0,0.09646]
[1761831920764,0.46077233,107550.0,107540.0,0.1267]
[1761831920965,0.34968,107550.0,107540.0,0.1267]
[1761831921259,1.1340833,107550.0,107540.0,0.03024]
[1761831921668,1.0040833,107550.0,107540.0,0.03024]
[1761831921852,1.20407687,107550.0,107540.0,0.03024]
[1761831922363,1.3040492,107550.0,107540.0,0.03024]
[1761831922752,1.2540492,107550.0,107540.0,0.03024]
[1761831923165,1.4268492,107550.0,107540.0,0.03024]
[1761831923369,1.4240492,107550.0,107540.0,0.03024]
[1761831923757,1.4240492,107550.0,107540.0,0.07817]
[1761831924759,0.8932492,107550.0,107540.0,0.1267]
[1761831924965,0.81327687,107550.0,107540.0,0.1267]
[1761831925262,0.19999357,107550.0,107540.0,0.1267]
[1761831925468,0.19999357,107550.0,107540.0,0.8269007]
[1761831925664,0.34952,107570.0,107560.0,0.12763]
[1761831926067,0.6044033,107580.0,107570.0,0.09822]
[1761831926260,0.09997233,107580.0,107570.0,0.45902]
[1761831926461,0.3608,107600.0,107590.0,0.09822]
[1761831926767,0.5002747,107600.0,107590.0,0.09822]
[1761831926967,0.13835829,107600.0,107590.0,0.09822]
[1761831927364,0.13835829,107600.0,107590.0,1.05902]
[1761831927564,0.13835829,107600.0,107590.0,0.69822]
[1761831927766,0.6044033,107610.0,107600.0,0.09822]
[1761831928671,0.6844033,107610.0,107600.0,0.09822]
[1761831929273,0.3608,107610.0,107600.0,0.09822]
[1761831929468,0.2436033,107640.0,107620.0,0.09822]
[1761831929469,0.3608,107630.0,107620.0,0.09822]
[1761831929682,0.7302,107630.0,107620.0,0.09822]
[1761831929862,1.0038033,107630.0,107620.0,0.09822]
[1761831930062,0.6044033,107630.0,107620.0,0.09822]
[1761831930271,0.6044033,107640.0,107630.0,0.09822]
[1761831930472,0.3808,107640.0,107630.0,0.09822]
[1761831930670,0.9537633,107650.0,107640.0,0.12763]
[1761831930872,1.07373563,107650.0,107640.0,0.12763]
[1761831931467,1.42645991,107650.0,107640.0,0.02941]
[1761831931673,1.53569575,107650.0,107610.0,0.02941]
[1761831931876,0.6044033,107620.0,107610.0,0.07996]
[1761831932070,0.6544033,107620.0,107610.0,0.07996]
[1761831932276,0.3808,107620.0,107610.0,0.12763]
[1761831932484,0.3608,107620.0,107610.0,0.12763]
[1761831932688,0.71004,107640.0,107620.0,0.04767]
[1761831932983,0.3608,107650.0,107620.0,0.04767]
[1761831932984,0.6044033,107650.0,107640.0,0.12763]
[1761831933185,1.41441563,107650.0,107640.0,0.02941]
[1761831933385,0.70437563,107650.0,107640.0,0.12763]
[1761831933573,0.09997233,107650.0,107640.0,0.3712333]
[1761831933884,0.3608,107660.0,107650.0,0.09822]
[1761831934081,0.3608,107670.0,107650.0,0.3608]
[1761831934271,0.3608,107670.0,107660.0,0.09822]
[1761831934472,0.9536033,107680.0,107670.0,0.07996]
[1761831934669,1.6244033,107680.0,107670.0,0.02941]
[1761831934877,0.1999243,107680.0,107670.0,0.12763]
[1761831935181,0.90429993,107680.0,107670.0,0.02941]
[1761831935381,0.95429993,107680.0,107670.0,0.02941]
[1761831935883,0.92429993,107680.0,107670.0,0.02941]
[1761831936086,0.92429993,107680.0,107670.0,0.12763]
[1761831936473,0.7763547,107680.0,107670.0,0.12763]
[1761831936677,0.9363547,107680.0,107670.0,0.12763]
[1761831936881,0.84069663,107680.0,107670.0,0.12763]
[1761831937081,1.08429993,107680.0,107670.0,0.12763]
[1761831937489,1.08429993,107680.0,107670.0,0.02941]
[1761831937879,0.92429993,107680.0,107670.0,0.12763]
[1761831938494,0.66069663,107680.0,107670.0,0.12763]
[1761831938790,0.95429993,107680.0,107670.0,0.12763]
[1761831938989,0.68069663,107680.0,107670.0,0.12763]
[1761831939485,0.86882893,107680.0,107670.0,0.12763]
[1761831939680,1.05329563,107680.0,107670.0,0.12763]
[1761831940289,0.70972,107680.0,107670.0,0.12763]
[1761831940489,0.3608,107690.0,107670.0,0.12763]
[1761831940490,0.6044033,107690.0,107680.0,0.05055]
[1761831940691,1.6240833,107690.0,107680.0,0.05055]
[1761831940890,1.6240833,107690.0,107670.0,0.02941]
[1761831941085,0.6044033,107680.0,107670.0,0.12763]
[1761831941294,0.6244033,107680.0,107670.0,0.12763]
[1761831941494,0.8844033,107680.0,107670.0,0.02941]
[1761831942090,0.46077233,107680.0,107670.0,0.12763]
[1761831942285,0.3608,107680.0,107670.0,0.12763]
[1761831942486,0.3608,107690.0,107680.0,0.09822]
[1761831942678,0.6244033,107690.0,107680.0,0.09822]
[1761831943180,1.1608066,107690.0,107670.0,0.02941]
[1761831943382,0.3608,107670.0,107620.0,0.0295164]
[1761831943577,0.7216,107630.0,107620.0,0.1277364]
[1761831943778,0.7416,107630.0,107620.0,0.1277364]
[1761831944084,1.2752033,107630.0,107620.0,0.0800664]
[1761831944284,0.9652033,107630.0,107620.0,0.1277364]
[1761831945184,0.3608,107640.0,107620.0,0.4165152]
[1761831945384,0.70952,107650.0,107640.0,0.09822]
[1761831945586,1.0152033,107650.0,107640.0,0.09822]
[1761831946688,1.2752033,107650.0,107620.0,0.0295164]
[1761831946884,0.9530833,107640.0,107620.0,0.0295164]
[1761831947084,0.6044033,107630.0,107620.0,0.1277364]
[1761831947393,0.6544033,107630.0,107620.0,0.1277364]
[1761831948186,0.98437563,107630.0,107620.0,0.0295164]
[1761831948585,0.98717563,107630.0,107620.0,0.0001064]
[1761831948785,0.98037563,107630.0,107620.0,0.0295164]
[1761831949793,1.09032503,107630.0,107620.0,0.0001064]
[1761831949992,0.98037563,107630.0,107620.0,0.0001064]
[1761831950392,0.98137563,107630.0,107620.0,0.0365164]
[1761831950693,0.98137563,107630.0,107620.0,0.0071064]
[1761831950891,0.98137563,107630.0,107620.0,0.0001064]
[1761831950892,1.05542601,107630.0,107620.0,0.0001064]
[1761831951400,0.98237563,107630.0,107620.0,0.0295164]
[1761831952797,0.98237563,107630.0,107620.0,0.0800664]
[1761831952995,0.98237563,107630.0,107620.0,0.1277364]
[1761831953197,0.82733233,107630.0,107620.0,0.1277364]
[1761831953395,0.3588,107630.0,107620.0,0.1277364]
[1761831953904,0.002,107630.0,107620.0,0.1277364]
[1761831954197,0.002,107630.0,107620.0,0.5814648]
[1761831954400,0.3608,107660.0,107640.0,0.12763]
[1761831954599,0.3808,107660.0,107650.0,0.0967]
[1761831954908,0.3608,107670.0,107660.0,0.11851]
[1761831955197,0.3608,107690.0,107680.0,0.02661]
[1761831955401,0.9729233,107690.0,107680.0,0.11851]
[1761831955600,0.3608,107690.0,107680.0,0.11851]
[1761831956293,0.6044033,107710.0,107700.0,0.02661]
[1761831956602,0.6244033,107710.0,107700.0,0.02661]
[1761831957000,0.3608,107710.0,107700.0,0.11851]
[1761831957404,0.3618,107710.0,107700.0,0.11851]
[1761831957599,0.6054033,107710.0,107700.0,1.65165306]
[1761831957799,0.6254033,107710.0,107700.0,1.65165306]
[1761831957998,0.6054033,107710.0,107700.0,0.11851]
[1761831958301,0.001,107710.0,107700.0,0.11851]
[1761831958604,0.10097233,107710.0,107700.0,0.11851]
[1761831958804,0.001,107710.0,107700.0,0.15165306]
[1761831959001,0.3618,107710.0,107700.0,0.15165306]
[1761831959204,0.3618,107710.0,107700.0,0.11851]
[1761831959504,0.6054033,107710.0,107700.0,0.11851]
[1761831959705,0.6254033,107710.0,107700.0,0.11851]
[1761831959904,0.021,107710.0,107700.0,0.11851]
[1761831960106,0.001,107710.0,107700.0,0.15165306]
[1761831960600,0.9527233,107740.0,107730.0,0.04615]
[1761831960792,1.6435233,107740.0,107720.0,0.11851]
[1761831960992,0.3608,107750.0,107740.0,0.11851]
[1761831961196,0.4108,107750.0,107740.0,0.11851]
[1761831961403,0.6544033,107750.0,107740.0,0.11851]
[1761831961604,0.56072436,107760.0,107750.0,0.0919]
[1761831961803,0.58072436,107760.0,107750.0,0.0919]
[1761831962098,0.6244033,107760.0,107750.0,0.0919]
[1761831962404,0.3808,107760.0,107750.0,0.0919]
[1761831962901,0.4108,107760.0,107750.0,0.0919]
[1761831963102,0.9526433,107770.0,107760.0,0.0919]
[1761831963297,0.46077233,107770.0,107760.0,0.0919]
[1761831963509,0.09997233,107770.0,107760.0,0.4527]
[1761831963700,0.3608,107790.0,107760.0,0.4527]
[1761831963900,0.74896,107790.0,107780.0,0.0919]
[1761831964104,1.4709061,107790.0,107760.0,0.3608]
[1761831964305,1.13291029,107770.0,107740.0,0.02661]
[1761831964604,0.3608,107750.0,107740.0,0.11851]
[1761831964807,0.3608,107770.0,107750.0,0.04615]
[1761831965006,0.3608,107780.0,107760.0,0.0919]
[1761831965191,0.42499571,107770.0,107760.0,0.0919]
[1761831965396,0.44499571,107770.0,107760.0,0.0919]
[1761831965605,0.3608,107780.0,107770.0,0.0919]
[1761831965902,0.3808,107780.0,107770.0,0.0919]
[1761831966098,1.30791029,107780.0,107750.0,0.34808]
[1761831966295,0.3608,107760.0,107740.0,0.38741]
[1761831966500,0.3608,107760.0,107750.0,0.0919]
[1761831967008,0.3618,107780.0,107770.0,0.0919]
[1761831967502,0.021,107780.0,107770.0,0.0919]
[1761831967906,0.3618,107780.0,107770.0,0.0919]
[1761831968204,0.7106967,107780.0,107770.0,0.0919]
[1761831968401,0.6806967,107780.0,107770.0,0.0919]
[1761831968709,0.19992437,107780.0,107770.0,0.4527]
[1761831969005,0.3608,107790.0,107780.0,0.0919]
[1761831969402,0.3608,107800.0,107790.0,0.11851]
[1761831969596,0.4108,107800.0,107790.0,0.11851]
[1761831970009,1.367007,107800.0,107790.0,0.02661]
[1761831970199,1.367007,107800.0,107790.0,0.52482029]
[1761831970200,0.29989671,107800.0,107790.0,0.52482029]
[1761831970401,0.16834195,107800.0,107790.0,1.23350029]
[1761831970603,0.003,107800.0,107790.0,1.23350029]
[1761831970806,0.003,107800.0,107790.0,0.82719]
[1761831971199,0.003,107800.0,107790.0,1.23350029]
[1761831971400,0.003,107800.0,107790.0,1.68708199]
[1761831971600,0.003,107800.0,107790.0,1.68988199]
[1761831972502,0.3608,107840.0,107830.0,0.0919]
[1761831972700,0.3808,107840.0,107830.0,0.0919]
[1761831972902,0.3608,107840.0,107830.0,0.0919]
[1761831973096,0.3608,107850.0,107840.0,0.0919]
[1761831973500,0.3608,107860.0,107850.0,0.02661]
[1761831973913,0.3808,107860.0,107850.0,0.02661]
[1761831974306,1.08711029,107860.0,107850.0,0.02661]
[1761831974604,0.46077233,107860.0,107850.0,0.02661]
[1761831974806,0.48077233,107860.0,107850.0,0.07236]
[1761831975005,0.51077233,107860.0,107850.0,0.11851]
[1761831975204,0.48077233,107860.0,107850.0,0.11851]
[1761831975409,0.46077233,107860.0,107850.0,0.11851]
[1761831975706,0.5308,107860.0,107850.0,0.11851]
[1761831976103,0.4068,107860.0,107850.0,0.02661]
[1761831976415,0.006,107860.0,107850.0,0.46961]
[1761831976616,0.3608,107870.0,107850.0,0.87592029]
[1761831976816,0.3808,107870.0,107850.0,0.46961]
[1761831977004,0.3608,107860.0,107850.0,0.10881]
[1761831977316,0.4108,107860.0,107850.0,0.10881]
[1761831978411,0.3608,107870.0,107860.0,0.0822]
[1761831978603,0.03696,107900.0,107890.0,0.04114]
[1761831978911,0.07392,107880.0,107860.0,1.86090205]
[1761831979120,0.03696,107870.0,107860.0,1.86090205]
[1761831979712,0.07392,107870.0,107860.0,1.86090205]
[1761831980104,0.07392,107870.0,107860.0,1.86390205]
[1761831980303,0.3608,107890.0,107860.0,1.86390205]
[1761831980507,0.5208,107890.0,107860.0,1.86090205]
[1761831980703,0.3608,107890.0,107870.0,0.3608]
[1761831980903,0.07392,107880.0,107860.0,1.86090205]
[1761831981107,0.07392,107880.0,107870.0,0.3608]
[1761831981410,0.09392,107880.0,107870.0,0.3608]
[1761831981619,0.7082,107900.0,107870.0,0.443]
[1761831981815,0.8782,107900.0,107870.0,0.443]
[1761831982020,0.09997233,107890.0,107880.0,0.3608]
[1761831982215,0.44737233,107900.0,107880.0,0.3608]
[1761831982421,0.77737233,107900.0,107880.0,0.3608]
[1761831982723,0.69728264,107900.0,107880.0,0.3608]
[1761831982930,0.09997233,107900.0,107890.0,0.3608]
[1761831983225,0.44733233,107910.0,107890.0,0.3608]
[1761831983420,0.39736,107910.0,107900.0,0.3608]
[1761831983621,0.34732,107920.0,107900.0,0.3608]
[1761831984008,0.05,107920.0,107900.0,0.3608]
[1761831984210,0.71725154,107930.0,107900.0,0.3608]
[1761831984407,0.3608,107920.0,107900.0,0.3608]
[1761831984716,0.4008,107920.0,107900.0,0.3608]
[1761831985417,0.5208,107920.0,107900.0,0.3608]
[1761831985622,0.5318,107920.0,107890.0,0.3608]
[1761831985920,0.5318,107920.0,107880.0,0.3608]
[1761831985921,0.3608,107910.0,107880.0,0.3608]
[1761831986112,0.34724,107900.0,107890.0,0.3608]
[1761831986309,0.39724,107900.0,107890.0,0.3608]
[1761831986525,0.34724,107900.0,107890.0,0.3608]
[1761831986819,0.36724,107900.0,107890.0,0.3608]
[1761831987023,0.49721233,107900.0,107880.0,0.3608]
[1761831987214,0.3608,107890.0,107870.0,0.3608]
[1761831987416,0.4108,107890.0,107870.0,0.3608]
[1761831987616,0.3472,107880.0,107870.0,0.3608]
[1761831987825,0.3972,107880.0,107860.0,1.86090205]
[1761831988018,0.5971103,107880.0,107860.0,1.86090205]
[1761831988217,0.3472,107880.0,107870.0,0.76711029]
[1761831988615,0.3472,107880.0,107870.0,0.3608]
[1761831988818,0.3608,107910.0,107870.0,0.76991029]
[1761831989019,0.44713233,107900.0,107890.0,0.3608]
[1761831989325,0.49713233,107900.0,107880.0,0.3608]
[1761831989518,0.44713233,107900.0,107880.0,0.3608]
[1761831989716,1.10793233,107900.0,107870.0,0.3608]
[1761831990329,0.82793233,107900.0,107880.0,0.3608]
[1761831990624,1.08793233,107900.0,107880.0,0.3608]
[1761831991029,1.49424262,107900.0,107870.0,0.3608]
[1761831991215,0.76711029,107890.0,107870.0,0.3608]
[1761831991412,0.34712,107880.0,107860.0,0.36090205]
[1761831991624,0.39712,107880.0,107860.0,0.36090205]
[1761831991826,0.46077233,107900.0,107870.0,0.3628]
[1761831992127,0.34712,107890.0,107880.0,0.3608]
[1761831992420,0.02,107890.0,107880.0,0.7216]
[1761831992624,0.34708,107890.0,107880.0,0.7216]
[1761831992824,0.36708,107890.0,107880.0,0.3608]
[1761831994126,0.34708,107890.0,107880.0,0.3608]
[1761831994637,0.34708,107890.0,107880.0,0.3618]
[1761831994928,0.02,107890.0,107880.0,0.3618]
[1761831995232,0.34704,107900.0,107880.0,1.73171029]
[1761831995432,0.34704,107910.0,107890.0,0.3608]
[1761831995641,0.38704,107910.0,107900.0,0.3608]
[1761831996026,0.58695032,107910.0,107900.0,0.3608]
[1761831996222,0.23991032,107910.0,107900.0,0.3608]
[1761831996434,0.21991032,107910.0,107900.0,0.3608]
[1761831996736,0.10509878,107910.0,107900.0,0.3608]
[1761831997031,0.347,107920.0,107900.0,0.3608]
[1761831997236,0.367,107920.0,107910.0,0.3608]
[1761831997533,0.367,107920.0,107900.0,0.3608]
[1761831997534,1.50408262,107920.0,107900.0,0.3608]
[1761831997731,0.40631029,107910.0,107900.0,0.3608]
[1761831997935,0.72631029,107910.0,107890.0,0.3608]
[1761831998130,0.75327029,107900.0,107890.0,0.3608]
[1761831998336,0.36696,107900.0,107890.0,0.3608]
[1761831998540,0.36696,107900.0,107890.0,0.38342174]
[1761831998737,0.86708262,107920.0,107890.0,0.38342174]
[1761831998738,0.46177233,107920.0,107890.0,0.38342174]
[1761831999032,0.34696,107910.0,107890.0,0.38342174]
[1761831999220,0.34696,107900.0,107890.0,0.40793979]
[1761831999429,0.39696,107900.0,107890.0,0.38342174]
[1761831999920,0.34976,107900.0,107890.0,0.38742174]
[1761832000131,0.64696,107900.0,107890.0,0.38742174]
[1761832000432,1.41507029,107900.0,107890.0,0.03362174]
[1761832000831,1.00876,107900.0,107890.0,0.03362174]
[1761832001228,1.00876,107900.0,107890.0,0.02962174]
[1761832001425,1.00876,107900.0,107890.0,0.03262174]
[1761832001630,1.10873233,107900.0,107890.0,0.03262174]
[1761832001837,1.11153233,107900.0,107890.0,0.03262174]
[1761832002033,1.10873233,107900.0,107890.0,0.03262174]
[1761832002229,1.51504262,107900.0,107890.0,0.03262174]
[1761832002426,1.51784262,107900.0,107890.0,0.03262174]
[1761832002632,2.19286004,107900.0,107890.0,0.03262174]